[Event "IIFL Wealth  4th Mumbai Junior U-13"]
[Site "Mumbai"]
[Date "2019.01.02"]
[Round "4"]
[White "Adireddy Arjun"]
[Black "Gosrani, Naiya"]
[Result "1-0"]
[ECO "C54"]
[WhiteElo "1468"]
[BlackElo "1235"]
[Annotator "NA RC"]
[PlyCount "119"]
[EventDate "2018.12.30"]
[EventType "swiss"]
[EventCountry "IND"]
[SourceTitle "playchess.com"]
[Source "ChessBase"]
[SourceQuality "1"]
[TimeControl "40/5400+30:1800+30"]

1. e4 {[%emt 0:06:45]} e5 {[%emt 0:00:00]} 2. Nf3 {[%emt 0:00:22]} Nc6 {[%emt 0:00:00]} 3. Bc4 {[%emt 0:00:15]} Bc5 {[%emt 0:00:00]} 4. c3 {[%emt 0:00:06]} Nf6 {[%emt 0:00:11]} 5. d3 {[%emt 0:00:11]} d6 {[%emt 0:00:24]} 6. Bb3 {[%emt 0:00:25]} a6 {[%emt 0:00:58]} 7. O-O {[%emt 0:00:31]} Ba7 {[%emt 0:00:43]} 8. Nbd2 {[%emt 0:00:08]} h6 {[%emt 0:01:22]} 9. h3 {[%emt 0:00:14]} Ne7 {[%emt 0:00:48]} 10. Re1 {[%emt 0:01:32]} Ng6 {[%emt 0:00:53]} 11. Nf1 {[%emt 0:00:04]} O-O {[%emt 0:00:43]} 12. Ng3 {[%emt 0:02:09]} Re8 {[%emt 0:01:42]} 13. d4 {[%emt 0:11:34]} c6 {[%emt 0:07:10]} 14. Be3 {[%emt 0:23:41]} Be6 {[%emt 0:07:43]} 15. Bc2 {[%emt 0:01:18]} Rf8 {[%emt 0:08:26]} 16. Nf5 {[%emt 0:03:40]} Re8 {[%emt 0:10:09]} 17. dxe5 {[%emt 0:07:21]} dxe5 {[%emt 0:00:36]} 18. Nd6 {[%emt 0:00:10]} Re7 {[%emt 0:02:51]} 19. Bxa7 {[%emt 0:00:36]} Rxa7 {[%emt 0:00:10]} 20. Nf5 {[%emt 0:00:11]} Qxd1 {[%emt 0:00:48]} 21. Nxe7+ {[%emt 0:00:08]} Nxe7 {[%emt 0:00:11]} 22. Raxd1 {[%emt 0:00:11]} Ng6 {[%emt 0:01:43]} 23. b3 {[%emt 0:00:51]} Ra8 {[%emt 0:01:59]} 24. c4 {[%emt 0:00:13]} Re8 {[%emt 0:06:16]} 25. Kh2 {[%emt 0:00:28]} Kh7 {[%emt 0:06:43]} 26. Rd6 {[%emt 0:00:16]} Re7 {[%emt 0:03:01]} 27. Red1 {[%emt 0:00:17]} Rd7 {[%emt 0:04:38]} 28. a3 {[%emt 0:03:57]} Rc7 {[%emt 0:01:46]} 29. c5 {[%emt 0:00:21]} Nd7 {[%emt 0:04:18]} 30. b4 {[%emt 0:00:02]} b6 {[%emt 0:05:55]} 31. cxb6 {[%emt 0:00:46]} Nxb6 {[%emt 0:00:08]} 32. Bd3 {[%emt 0:00:27]} Nc4 {[%emt 0:02:03]} 33. Bxc4 {[%emt 0:00:23]} Bxc4 {[%emt 0:00:09]} 34. Rd7 {[%emt 0:00:09]} Rxd7 {[%emt 0:01:16]} 35. Rxd7 {[%emt 0:00:22]} f6 {[%emt 0:00:29]} 36. g3 {[%emt 0:00:25]} Nf8 {[%emt 0:01:33]} 37. Rd8 {[%emt 0:00:54]} Ng6 {[%emt 0:03:12]} 38. Nd2 {[%emt 0:00:12]} Bb5 {[%emt 0:03:02]} 39. Nb3 {[%emt 0:00:23]} Ne7 {[%emt 0:03:26]} 40. Nc5 {[%emt 0:00:00]} Kg6 {[%emt 0:00:00]} 41. Ra8 {[%emt 0:00:14]} f5 {[%emt 0:05:46]} 42. exf5+ {[%emt 0:00:11]} Kxf5 {[%emt 0:02:48]} 43. Nxa6 {[%emt 0:00:04]} Bxa6 {[%emt 0:01:42]} 44. Rxa6 {[%emt 0:00:02]} g5 {[%emt 0:00:17]} 45. a4 {[%emt 0:00:04]} Ke4 {[%emt 0:03:32]} 46. b5 {[%emt 0:00:05]} cxb5 {[%emt 0:00:18]} 47. axb5 {[%emt 0:00:04]} Kf3 {[%emt 0:01:53]} 48. Rxh6 {[%emt 0:00:26]} Kxf2 {[%emt 0:01:41]} 49. Re6 {[%emt 0:00:02]} Nf5 {[%emt 0:00:16]} 50. Rf6 {[%emt 0:00:08]} e4 {[%emt 0:00:40]} 51. Rxf5+ {[%emt 0:00:04]} Ke2 {[%emt 0:00:21]} 52. b6 {[%emt 0:00:01]} e3 {[%emt 0:00:03]} 53. b7 {[%emt 0:00:06]} Kd1 {[%emt 0:00:15]} 54. b8=Q {[%emt 0:00:11]} e2 {[%emt 0:00:21]} 55. Qd6+ {[%emt 0:00:14]} Ke1 {[%emt 0:00:12]} 56. Re5 {[%emt 0:00:04]} Kf1 {[%emt 0:00:13]} 57. Qf6+ {[%emt 0:00:02]} Ke1 {[%emt 0:00:04]} 58. Qf3 {[%emt 0:00:30]} Kd1 {[%emt 0:00:09]} 59. Rxe2 {[%emt 0:00:08]} Kc1 {[%emt 0:00:14]} 60. Qh1# {[%emt 0:00:05]} 1-0

[Event "IIFL Wealth  4th Mumbai Junior U-13"]
[Site "Mumbai"]
[Date "2019.01.02"]
[Round "4"]
[White "Varshita Jain"]
[Black "Keerthana B"]
[Result "1-0"]
[ECO "C88"]
[WhiteElo "1461"]
[BlackElo "1232"]
[Annotator "NA"]
[PlyCount "45"]
[EventDate "2018.12.30"]
[EventType "swiss"]
[EventCountry "IND"]
[SourceTitle "playchess.com"]
[Source "ChessBase"]
[SourceQuality "1"]
[TimeControl "40/5400+30:1800+30"]

1. e4 e5 {[%emt 0:00:00]} 2. Nf3 {[%emt 0:00:00]} Nc6 {[%emt 0:00:00]} 3. Bb5 {[%emt 0:00:00]} a6 {[%emt 0:00:00]} 4. Ba4 {[%emt 0:00:00]} Nf6 {[%emt 0:00:00]} 5. O-O {[%emt 0:00:02]} Be7 {[%emt 0:00:21]} 6. Re1 {[%emt 0:00:09]} b5 {[%emt 0:00:05]} 7. Bb3 {[%emt 0:00:04]} d6 {[%emt 0:00:17]} 8. c3 {[%emt 0:00:05]} Na5 {[%emt 0:01:15]} 9. Bc2 {[%emt 0:00:01]} c5 {[%emt 0:00:18]} 10. d4 {[%emt 0:00:02]} Qc7 {[%emt 0:01:14]} 11. Nbd2 {[%emt 0:00:23]} Bd7 {[%emt 0:01:38]} 12. Nf1 {[%emt 0:01:00]} O-O {[%emt 0:02:10]} 13. d5 {[%emt 0:00:50]} c4 {[%emt 0:03:19]} 14. Ng3 {[%emt 0:03:09]} Nb7 {[%emt 0:04:15]} 15. h3 {[%emt 0:05:43]} a5 {[%emt 0:03:41]} 16. Bd2 {[%emt 0:06:02]} Nc5 {[%emt 0:04:53]} 17. Be3 {[%emt 0:05:35]} b4 {[%emt 0:06:07]} 18. Qd2 {[%emt 0:10:04]} Rfb8 {[%emt 0:07:57]} 19. b3 {[%emt 0:16:19]} Na6 {[%emt 0:10:55]} 20. Rac1 {[%emt 0:09:06]} Rc8 {[%emt 0:05:16]} 21. bxc4 {[%emt 0:07:31]} Qxc4 {[%emt 0:10:58]} 22. Bd3 {[%emt 0:06:47]} bxc3 {[%emt 0:00:40]} 23. Qe2 {[%emt 0:01:39]} 1-0

[Event "IIFL Wealth  4th Mumbai Junior U-13"]
[Site "Mumbai"]
[Date "2019.01.02"]
[Round "4"]
[White "Laddha, Yash Jayesh"]
[Black "Riddhika Kotia"]
[Result "1-0"]
[ECO "B15"]
[WhiteElo "1449"]
[BlackElo "1213"]
[Annotator "NA"]
[PlyCount "55"]
[EventDate "2018.12.30"]
[EventType "swiss"]
[EventCountry "IND"]
[SourceTitle "playchess.com"]
[Source "ChessBase"]
[SourceQuality "1"]
[TimeControl "40/5400+30:1800+30"]

1. e4 {[%emt 0:00:00]} c6 {[%emt 0:00:00]} 2. d4 {[%emt 0:00:00]} d5 {[%emt 0:00:00]} 3. Nc3 {[%emt 0:00:00]} e6 {[%emt 0:11:34]} 4. e5 {[%emt 0:04:42]} c5 {[%emt 0:02:11]} 5. Nf3 {[%emt 0:04:15]} Nc6 {[%emt 0:05:53]} 6. Be3 {[%emt 0:03:05]} cxd4 {[%emt 0:03:21]} 7. Bxd4 {[%emt 0:05:48]} Nxd4 {[%emt 0:00:36]} 8. Nxd4 {[%emt 0:04:03]} Bb4 {[%emt 0:03:51]} 9. Qd3 {[%emt 0:08:35]} Bd7 {[%emt 0:10:01]} 10. a3 {[%emt 0:08:08]} Ba5 {[%emt 0:01:08]} 11. Ndb5 {[%emt 0:02:39]} Bxc3+ 12. Nxc3 Qc7 {[%emt 0:10:24]} 13. Qg3 {[%emt 0:06:57]} g6 {[%emt 0:05:13]} 14. Nb5 {[%emt 0:07:52]} Bxb5 {[%emt 0:22:55]} 15. Bxb5+ {[%emt 0:00:45]} Kf8 {[%emt 0:00:37]} 16. O-O {[%emt 0:02:42]} Qxc2 {[%emt 0:06:17]} 17. Rfc1 {[%emt 0:01:02]} Qxb2 {[%emt 0:02:48]} 18. Rab1 {[%emt 0:00:16]} Qd4 {[%emt 0:03:47]} 19. Rc7 {[%emt 0:01:52]} f6 {[%emt 0:03:27]} 20. exf6 {[%emt 0:00:41]} Qxf6 {[%emt 0:00:36]} 21. Qd6+ {[%emt 0:00:42]} Ne7 {[%emt 0:00:31]} 22. Rb3 {[%emt 0:00:59]} Qa1+ {[%emt 0:03:30]} 23. Bf1 {[%emt 0:00:05]} Re8 {[%emt 0:00:46]} 24. Rf3+ {[%emt 0:00:32]} Kg8 {[%emt 0:00:51]} 25. Qxe6+ {[%emt 0:00:14]} Kg7 {[%emt 0:00:17]} 26. Rxe7+ {[%emt 0:00:09]} Rxe7 {[%emt 0:00:12]} 27. Qxe7+ {[%emt 0:00:04]} Kg8 {[%emt 0:00:37]} 28. Rf8# {[%emt 0:00:06]} 1-0

[Event "IIFL Wealth  4th Mumbai Junior U-13"]
[Site "Mumbai"]
[Date "2019.01.02"]
[Round "4"]
[White "Kriti Mayur Patel"]
[Black "Shah, Viraj Bhaveshu"]
[Result "1-0"]
[ECO "C54"]
[WhiteElo "1439"]
[BlackElo "1119"]
[Annotator "NA"]
[PlyCount "101"]
[EventDate "2018.12.30"]
[EventType "swiss"]
[EventCountry "IND"]
[SourceTitle "playchess.com"]
[Source "ChessBase"]
[SourceQuality "1"]
[TimeControl "40/5400+30:1800+30"]

1. e4 {[%emt 0:00:00]} e5 {[%emt 0:00:00]} 2. Nf3 {[%emt 0:00:00]} Nc6 {[%emt 0:00:00]} 3. Bc4 {[%emt 0:00:00]} Bc5 {[%emt 0:00:00]} 4. c3 {[%emt 0:00:00]} Nf6 {[%emt 0:00:08]} 5. d3 {[%emt 0:00:00]} h6 {[%emt 0:00:26]} 6. Nbd2 {[%emt 0:00:13]} d6 {[%emt 0:00:32]} 7. Bb3 {[%emt 0:00:13]} Be6 {[%emt 0:00:55]} 8. h3 {[%emt 0:00:07]} O-O {[%emt 0:00:17]} 9. Nf1 {[%emt 0:00:10]} Re8 {[%emt 0:00:47]} 10. Ng3 {[%emt 0:00:24]} Ne7 {[%emt 0:00:42]} 11. Nh4 {[%emt 0:00:44]} Qc8 {[%emt 0:02:46]} 12. Qf3 {[%emt 0:00:51]} Nh7 {[%emt 0:06:46]} 13. Nh5 {[%emt 0:02:00]} Ng6 {[%emt 0:04:27]} 14. Qg3 {[%emt 0:02:33]} Bxb3 {[%emt 0:04:21]} 15. axb3 {[%emt 0:02:04]} Qe6 {[%emt 0:00:34]} 16. Nf5 {[%emt 0:01:26]} Rf8 {[%emt 0:10:48]} 17. Nhxg7 {[%emt 0:00:50]} Qxb3 {[%emt 0:09:15]} 18. h4 {[%emt 0:00:40]} Kh8 {[%emt 0:14:18]} 19. Nh5 {[%emt 0:04:31]} Rg8 {[%emt 0:00:56]} 20. Qf3 {[%emt 0:04:20]} d5 {[%emt 0:04:35]} 21. Nxh6 {[%emt 0:02:00]} Rgf8 {[%emt 0:02:34]} 22. Nxf7+ {[%emt 0:01:40]} Kg8 {[%emt 0:02:21]} 23. Qf5 {[%emt 0:05:28]} Bxf2+ {[%emt 0:01:20]} 24. Kd2 {[%emt 0:02:22]} Be3+ {[%emt 0:01:08]} 25. Kxe3 {[%emt 0:02:56]} d4+ {[%emt 0:00:25]} 26. Ke2 {[%emt 0:02:18]} Qxf7 {[%emt 0:02:37]} 27. Qxf7+ {[%emt 0:00:24]} Rxf7 {[%emt 0:00:19]} 28. cxd4 {[%emt 0:00:19]} exd4 {[%emt 0:00:35]} 29. Ng3 {[%emt 0:00:36]} Nf4+ {[%emt 0:00:27]} 30. Bxf4 {[%emt 0:00:45]} Rxf4 {[%emt 0:00:12]} 31. Nf5 {[%emt 0:00:10]} a6 {[%emt 0:00:49]} 32. g3 {[%emt 0:00:37]} Rxf5 {[%emt 0:01:41]} 33. exf5 {[%emt 0:00:12]} Re8+ {[%emt 0:00:25]} 34. Kf2 Re3 {[%emt 0:00:47]} 35. Rad1 {[%emt 0:00:57]} Nf6 {[%emt 0:00:08]} 36. Rhe1 {[%emt 0:00:47]} Ng4+ {[%emt 0:01:16]} 37. Kg2 {[%emt 0:00:59]} Kf7 {[%emt 0:00:37]} 38. Rc1 {[%emt 0:03:05]} c6 {[%emt 0:00:46]} 39. Rxe3 {[%emt 0:00:36]} Nxe3+ {[%emt 0:00:35]} 40. Kf3 {[%emt 0:00:00]} Nxf5 {[%emt 0:00:00]} 41. Kf4 {[%emt 0:01:40]} Nd6 {[%emt 0:03:48]} 42. Ke5 {[%emt 0:01:33]} Ke7 {[%emt 0:01:15]} 43. g4 {[%emt 0:00:24]} Nb5 {[%emt 0:00:53]} 44. h5 {[%emt 0:00:12]} Kf7 {[%emt 0:00:24]} 45. g5 {[%emt 0:00:17]} Kg7 {[%emt 0:00:29]} 46. h6+ {[%emt 0:00:23]} Kh7 {[%emt 0:01:11]} 47. Rf1 {[%emt 0:00:14]} Kg8 {[%emt 0:02:38]} 48. g6 {[%emt 0:00:16]} Nc7 {[%emt 0:00:12]} 49. Rf7 {[%emt 0:00:55]} Ne8 {[%emt 0:00:34]} 50. Rxb7 {[%emt 0:00:14]} Kh8 {[%emt 0:01:18]} 51. Rb8 {[%emt 0:00:08]} 1-0

[Event "IIFL Wealth  4th Mumbai Junior U-13"]
[Site "Mumbai"]
[Date "2019.01.02"]
[Round "4"]
[White "Dande Vyankatesh S"]
[Black "Desai Sailee"]
[Result "1/2-1/2"]
[ECO "B01"]
[WhiteElo "1418"]
[BlackElo "1042"]
[Annotator "NA RC"]
[PlyCount "64"]
[EventDate "2018.12.30"]
[EventType "swiss"]
[EventCountry "IND"]
[SourceTitle "playchess.com"]
[Source "ChessBase"]
[SourceQuality "1"]
[TimeControl "40/5400+30:1800+30"]

1. e4 {[%emt 0:00:00]} d5 {[%emt 0:00:00]} 2. exd5 {[%emt 0:00:00]} Qxd5 {[%emt 0:00:00]} 3. Nc3 {[%emt 0:00:00]} Qd6 {[%emt 0:00:00]} 4. Nf3 {[%emt 0:00:00]} Nf6 {[%emt 0:00:02]} 5. d4 {[%emt 0:00:51]} e6 {[%emt 0:00:08]} 6. Be3 {[%emt 0:00:18]} Be7 {[%emt 0:00:11]} 7. Be2 {[%emt 0:00:31]} a6 {[%emt 0:00:24]} 8. Bd3 {[%emt 0:03:42]} Nbd7 {[%emt 0:02:54]} 9. Qd2 {[%emt 0:06:50]} b5 {[%emt 0:01:56]} 10. Ne4 {[%emt 0:05:27]} Nxe4 {[%emt 0:03:10]} 11. Bxe4 {[%emt 0:05:06]} Rb8 {[%emt 0:01:24]} 12. a3 {[%emt 0:01:13]} Nf6 {[%emt 0:00:47]} 13. Bd3 {[%emt 0:00:12]} Bb7 {[%emt 0:00:33]} 14. Be2 {[%emt 0:00:40]} Rc8 {[%emt 0:02:31]} 15. O-O {[%emt 0:14:33]} O-O {[%emt 0:01:59]} 16. Rfe1 {[%emt 0:08:59]} Rfe8 {[%emt 0:13:43]} 17. Bf4 {[%emt 0:17:13]} Qb6 {[%emt 0:17:41]} 18. Bf1 {[%emt 0:03:19]} c5 {[%emt 0:05:46]} 19. c3 {[%emt 0:03:10]} cxd4 {[%emt 0:03:19]} 20. Nxd4 {[%emt 0:00:36]} Bc5 {[%emt 0:07:38]} 21. Be5 {[%emt 0:07:10]} Ne4 {[%emt 0:05:42]} 22. Rxe4 {[%emt 0:07:40]} Bxe4 {[%emt 0:02:51]} 23. Re1 {[%emt 0:00:30]} Bg6 {[%emt 0:00:00]} 24. Bd3 {[%emt 0:00:47]} Bxd3 {[%emt 0:02:24]} 25. Qxd3 {[%emt 0:00:11]} f6 {[%emt 0:00:49]} 26. Bg3 {[%emt 0:00:08]} Bxd4 {[%emt 0:01:28]} 27. cxd4 {[%emt 0:00:30]} Red8 {[%emt 0:01:48]} 28. Kh1 {[%emt 0:05:07]} Kh8 {[%emt 0:00:12]} 29. Kg1 {[%emt 0:00:03]} Kg8 {[%emt 0:00:04]} 30. Kh1 {[%emt 0:00:03]} Kh8 {[%emt 0:00:05]} 31. Kg1 {[%emt 0:00:08]} Kg8 {[%emt 0:00:04]} 32. Kh1 {[%emt 0:00:06]} Kh8 1/2-1/2

[Event "IIFL Wealth  4th Mumbai Junior U-13"]
[Site "Mumbai"]
[Date "2019.01.02"]
[Round "4"]
[White "Amrit Raunak"]
[Black "Yash Joshi"]
[Result "1-0"]
[ECO "B22"]
[WhiteElo "1410"]
[BlackElo "1389"]
[Annotator "NA RC"]
[PlyCount "127"]
[EventDate "2018.12.30"]
[EventType "swiss"]
[EventCountry "IND"]
[SourceTitle "playchess.com"]
[Source "ChessBase"]
[SourceQuality "1"]
[TimeControl "40/5400+30:1800+30"]

1. e4 c5 2. c3 d5 3. exd5 Nf6 4. d4 Nxd5 5. Nf3 e6 6. Bc4 Nc6 7. O-O Be7 8. Bxd5 Qxd5 9. Be3 cxd4 10. Bxd4 Nxd4 11. Qxd4 Qxd4 12. Nxd4 O-O 13. Nd2 e5 14. N4f3 f6 15. h3 b6 16. Rfe1 Rd8 17. Rad1 Bb7 18. Nf1 Rac8 19. Ne3 g6 20. Rxd8+ Rxd8 21. Rd1 Rxd1+ 22. Nxd1 Bd5 23. b3 b5 24. Ne3 Be6 25. Nd2 f5 26. c4 a6 27. cxb5 axb5 28. Nf3 Bf6 29. a4 e4 30. Nd2 Bd8 31. axb5 Bd7 32. Nec4 Bxb5 33. Nd6 Bd7 34. Kf1 Kf8 35. Ke2 Ke7 36. N6c4 Ke6 37. Ke3 Kd5 38. f3 Bg5+ 39. f4 Bd8 40. Nb1 Bb5 41. Nc3+ Kc5 42. Nxb5 Kxb5 43. Ne5 Bc7 44. Nd7 Kb4 45. Nf8 Bd6 46. Nxh7 Bc5+ 47. Ke2 Kxb3 48. Nf6 Kc4 49. Nd7 Bd4 50. Nf8 e3 51. Nxg6 Kd5 52. Nh4 Ke4 53. Nf3 Bb6 54. g3 Ba7 55. Ne1 Bb8 56. Ng2 Bd6 57. h4 Bf8 58. Nxe3 Bh6 59. Ng2 Bg7 60. h5 Bh6 61. Nh4 Bg7 62. Ng6 Bh6 63. Ne5 Bg7 64. Nf7 1-0

[Event "IIFL Wealth  4th Mumbai Junior U-13"]
[Site "Mumbai"]
[Date "2019.01.02"]
[Round "4"]
[White "Ananya Arumbakkam"]
[Black "Suhaani Lohia"]
[Result "1-0"]
[ECO "B52"]
[WhiteElo "1405"]
[BlackElo "1200"]
[Annotator "NA RC"]
[PlyCount "86"]
[EventDate "2018.12.30"]
[EventType "swiss"]
[EventCountry "IND"]
[SourceTitle "playchess.com"]
[Source "ChessBase"]
[SourceQuality "1"]
[TimeControl "40/5400+30:1800+30"]

1. e4 c5 {[%emt 0:00:00]} 2. Nf3 {[%emt 0:00:00]} d6 {[%emt 0:00:45]} 3. Bb5+ {[%emt 0:00:09]} Bd7 {[%emt 0:04:03]} 4. Bxd7+ {[%emt 0:00:13]} Qxd7 {[%emt 0:00:48]} 5. O-O {[%emt 0:00:07]} Nf6 {[%emt 0:00:21]} 6. Qe2 {[%emt 0:00:09]} g6 {[%emt 0:00:27]} 7. c3 {[%emt 0:00:10]} Bg7 {[%emt 0:00:43]} 8. Rd1 {[%emt 0:00:07]} Nc6 {[%emt 0:00:48]} 9. d4 {[%emt 0:00:38]} cxd4 {[%emt 0:05:29]} 10. cxd4 {[%emt 0:00:27]} Rd8 {[%emt 0:02:59]} 11. Nc3 {[%emt 0:01:04]} O-O {[%emt 0:04:32]} 12. Be3 {[%emt 0:02:42]} Qc7 {[%emt 0:04:49]} 13. Rac1 {[%emt 0:00:25]} Qb8 {[%emt 0:01:16]} 14. h3 {[%emt 0:10:16]} Rfe8 {[%emt 0:11:52]} 15. Bg5 {[%emt 0:01:01]} h6 {[%emt 0:01:42]} 16. Bf4 {[%emt 0:00:24]} Kh7 {[%emt 0:03:43]} 17. Bh2 {[%emt 0:01:50]} Nd7 {[%emt 0:04:54]} 18. Qc4 {[%emt 0:01:54]} Kg8 {[%emt 0:01:49]} 19. b4 {[%emt 0:03:27]} Rc8 {[%emt 0:05:04]} 20. Qb3 {[%emt 0:01:38]} Nb6 {[%emt 0:10:10]} 21. a4 {[%emt 0:01:05]} Qc7 {[%emt 0:04:42]} 22. a5 {[%emt 0:02:57]} Nd7 {[%emt 0:03:47]} 23. Nd5 {[%emt 0:00:33]} Qb8 {[%emt 0:01:08]} 24. Qa4 {[%emt 0:16:45]} Nf8 {[%emt 0:02:10]} 25. b5 {[%emt 0:00:56]} Nd8 {[%emt 0:03:06]} 26. Rxc8 {[%emt 0:08:33]} Qxc8 {[%emt 0:01:51]} 27. b6 {[%emt 0:02:52]} Nc6 {[%emt 0:00:21]} 28. bxa7 {[%emt 0:01:07]} Nxa7 29. Bf4 {[%emt 0:04:24]} Ne6 {[%emt 0:00:55]} 30. Rc1 {[%emt 0:00:58]} Qb8 {[%emt 0:02:07]} 31. Be3 {[%emt 0:01:08]} Nc6 {[%emt 0:00:51]} 32. a6 {[%emt 0:02:21]} Qa7 {[%emt 0:00:29]} 33. Nc3 {[%emt 0:01:07]} Nexd4 {[%emt 0:04:02]} 34. Nxd4 {[%emt 0:01:21]} Bxd4 {[%emt 0:01:26]} 35. Nb5 {[%emt 0:01:43]} Qb6 {[%emt 0:01:22]} 36. Nxd4 {[%emt 0:00:32]} Nxd4 {[%emt 0:01:15]} 37. Qxe8+ {[%emt 0:00:23]} Kg7 {[%emt 0:00:09]} 38. Bxd4+ {[%emt 0:00:05]} Qxd4 {[%emt 0:00:11]} 39. axb7 {[%emt 0:00:24]} Qd2 {[%emt 0:00:21]} 40. Qc8 {[%emt 0:00:00]} Qb2 {[%emt 0:00:00]} 41. b8=Q {[%emt 0:00:21]} Qb6 42. Qbb7 Qxb7 {[%emt 0:01:00]} 43. Qb8 {[%emt 0:00:35]} Qxb8 {[%emt 0:00:06]} 1-0

[Event "IIFL Wealth  4th Mumbai Junior U-13"]
[Site "Mumbai"]
[Date "2019.01.02"]
[Round "4"]
[White "Virle Kimaya"]
[Black "Mayank Chakraborty"]
[Result "0-1"]
[ECO "E32"]
[WhiteElo "1391"]
[BlackElo "1691"]
[Annotator "NA RC"]
[PlyCount "84"]
[EventDate "2018.12.30"]
[EventType "swiss"]
[EventCountry "IND"]
[SourceTitle "playchess.com"]
[Source "ChessBase"]
[SourceQuality "1"]
[TimeControl "40/5400+30:1800+30"]

1. d4 {[%emt 0:00:00]} Nf6 {[%emt 0:03:23]} 2. c4 {[%emt 0:00:00]} e6 {[%emt 0:00:09]} 3. Nc3 {[%emt 0:00:00]} Bb4 {[%emt 0:00:09]} 4. Qc2 {[%emt 0:00:00]} O-O {[%emt 0:00:32]} 5. a3 {[%emt 0:00:12]} Bxc3+ {[%emt 0:00:32]} 6. Qxc3 {[%emt 0:00:08]} b5 {[%emt 0:00:46]} 7. cxb5 {[%emt 0:03:23]} c6 {[%emt 0:00:24]} 8. Bg5 {[%emt 0:01:05]} cxb5 {[%emt 0:01:14]} 9. e3 {[%emt 0:01:08]} Bb7 {[%emt 0:05:52]} 10. Rc1 {[%emt 0:01:11]} Nc6 {[%emt 0:31:05]} 11. Nf3 {[%emt 0:04:05]} Rc8 {[%emt 0:04:05]} 12. Qd2 {[%emt 0:00:54]} Qa5 {[%emt 0:09:40]} 13. Bxf6 {[%emt 0:01:06]} gxf6 {[%emt 0:01:03]} 14. Be2 {[%emt 0:00:57]} Qxd2+ {[%emt 0:00:10]} 15. Kxd2 {[%emt 0:00:13]} a6 {[%emt 0:00:06]} 16. Rc2 {[%emt 0:03:24]} Na5 17. b4 {[%emt 0:04:52]} Nb3+ {[%emt 0:06:28]} 18. Kd1 {[%emt 0:01:46]} Be4 {[%emt 0:00:12]} 19. Rc5 {[%emt 0:03:40]} Nxc5 {[%emt 0:00:12]} 20. dxc5 {[%emt 0:00:02]} d6 {[%emt 0:00:23]} 21. Nd2 {[%emt 0:01:12]} Bb7 {[%emt 0:00:19]} 22. c6 {[%emt 0:01:50]} Bxc6 {[%emt 0:00:15]} 23. Bf3 {[%emt 0:01:11]} Bxf3+ {[%emt 0:00:09]} 24. Nxf3 {[%emt 0:00:12]} Rc3 {[%emt 0:00:07]} 25. Kd2 {[%emt 0:01:17]} Rfc8 {[%emt 0:00:09]} 26. Ra1 {[%emt 0:02:51]} Rc2+ {[%emt 0:00:07]} 27. Ke1 {[%emt 0:02:42]} Rc1+ {[%emt 0:00:04]} 28. Rxc1 {[%emt 0:00:54]} Rxc1+ {[%emt 0:00:08]} 29. Kd2 {[%emt 0:00:22]} Ra1 {[%emt 0:00:12]} 30. Nd4 {[%emt 0:01:17]} Rxa3 {[%emt 0:00:10]} 31. e4 {[%emt 0:01:15]} Ra1 {[%emt 0:00:18]} 32. Ke3 {[%emt 0:03:38]} a5 {[%emt 0:00:40]} 33. Nxb5 {[%emt 0:05:34]} axb4 {[%emt 0:00:11]} 34. Kd3 {[%emt 0:02:01]} Ra2 {[%emt 0:00:10]} 35. Kc4 {[%emt 0:01:02]} Rxf2 {[%emt 0:00:09]} 36. Nxd6 {[%emt 0:01:15]} Rxg2 {[%emt 0:00:11]} 37. h4 {[%emt 0:02:17]} Rg4 {[%emt 0:00:13]} 38. Kxb4 {[%emt 0:02:10]} f5 {[%emt 0:00:23]} 39. Kc3 {[%emt 0:01:16]} fxe4 {[%emt 0:00:08]} 40. h5 {[%emt 0:00:00]} e3 {[%emt 0:00:00]} 41. Kd3 {[%emt 0:01:17]} Rd4+ {[%emt 0:00:47]} 42. Kxd4 {[%emt 0:00:43]} e2 {[%emt 0:00:08]} 0-1

[Event "IIFL Wealth  4th Mumbai Junior U-13"]
[Site "Mumbai"]
[Date "2019.01.02"]
[Round "4"]
[White "Agarwal Mukund H"]
[Black "Shreyas Ghadi"]
[Result "1/2-1/2"]
[ECO "C02"]
[WhiteElo "1375"]
[BlackElo "1653"]
[Annotator "NA"]
[PlyCount "103"]
[EventDate "2018.12.30"]
[EventType "swiss"]
[EventCountry "IND"]
[SourceTitle "playchess.com"]
[Source "ChessBase"]
[SourceQuality "1"]
[TimeControl "40/5400+30:1800+30"]

1. e4 {[%emt 0:06:27]} e6 {[%emt 0:00:00]} 2. d4 {[%emt 0:00:06]} d5 {[%emt 0:00:00]} 3. e5 {[%emt 0:00:04]} c5 {[%emt 0:00:00]} 4. c3 {[%emt 0:00:02]} Nc6 {[%emt 0:00:00]} 5. Be3 {[%emt 0:00:10]} Nge7 {[%emt 0:01:38]} 6. Nf3 {[%emt 0:00:32]} cxd4 7. cxd4 {[%emt 0:01:05]} Qb6 {[%emt 0:02:22]} 8. Qd2 {[%emt 0:00:54]} Nf5 {[%emt 0:00:49]} 9. Be2 {[%emt 0:06:50]} Bd7 {[%emt 0:01:54]} 10. Nc3 {[%emt 0:04:23]} Na5 {[%emt 0:01:06]} 11. O-O {[%emt 0:03:33]} Rc8 {[%emt 0:00:15]} 12. Rac1 {[%emt 0:15:20]} Nc4 {[%emt 0:00:57]} 13. Bxc4 {[%emt 0:00:33]} Rxc4 {[%emt 0:00:20]} 14. a3 {[%emt 0:13:20]} Be7 {[%emt 0:02:23]} 15. Ne2 {[%emt 0:04:47]} Rxc1 {[%emt 0:06:08]} 16. Rxc1 {[%emt 0:00:04]} h6 {[%emt 0:00:09]} 17. Ng3 {[%emt 0:02:37]} Nxg3 {[%emt 0:02:56]} 18. hxg3 {[%emt 0:01:32]} Bc6 {[%emt 0:04:04]} 19. Ne1 {[%emt 0:07:59]} O-O {[%emt 0:11:04]} 20. Nd3 {[%emt 0:01:23]} Qd8 {[%emt 0:00:48]} 21. Ne1 {[%emt 0:02:32]} f5 {[%emt 0:01:02]} 22. Nd3 g5 {[%emt 0:01:05]} 23. f4 {[%emt 0:04:30]} g4 {[%emt 0:00:18]} 24. Kf2 {[%emt 0:01:25]} Kg7 {[%emt 0:00:15]} 25. Rh1 {[%emt 0:02:53]} Rh8 {[%emt 0:00:17]} 26. Nb4 {[%emt 0:05:18]} Bb5 {[%emt 0:01:43]} 27. Rc1 {[%emt 0:00:53]} Bc4 {[%emt 0:00:49]} 28. Qc3 {[%emt 0:00:33]} a5 {[%emt 0:00:15]} 29. Nd3 {[%emt 0:00:25]} b6 {[%emt 0:01:33]} 30. b3 {[%emt 0:01:24]} Ba6 {[%emt 0:04:03]} 31. a4 {[%emt 0:01:07]} Qd7 {[%emt 0:01:22]} 32. Qc7 {[%emt 0:00:45]} Qxc7 {[%emt 0:00:05]} 33. Rxc7 {[%emt 0:00:01]} Kf7 {[%emt 0:00:01]} 34. Ne1 {[%emt 0:01:38]} Rb8 {[%emt 0:01:28]} 35. Bc1 {[%emt 0:01:01]} Ke8 {[%emt 0:02:00]} 36. Bd2 {[%emt 0:00:49]} Kd8 {[%emt 0:01:51]} 37. Rc1 {[%emt 0:01:48]} Kd7 {[%emt 0:00:11]} 38. Nc2 {[%emt 0:00:57]} Rc8 {[%emt 0:01:25]} 39. Ke1 {[%emt 0:02:36]} h5 {[%emt 0:01:05]} 40. Kd1 {[%emt 0:00:00]} h4 {[%emt 0:00:00]} 41. gxh4 {[%emt 0:00:54]} Bxh4 {[%emt 0:00:45]} 42. b4 {[%emt 0:00:13]} axb4 {[%emt 0:00:53]} 43. Bxb4 {[%emt 0:00:18]} Bg3 {[%emt 0:02:44]} 44. Bd2 {[%emt 0:00:28]} Rh8 {[%emt 0:01:03]} 45. Ne3 {[%emt 0:01:05]} Bxf4 {[%emt 0:00:54]} 46. Nxd5 {[%emt 0:00:19]} Rh1+ {[%emt 0:00:04]} 47. Kc2 {[%emt 0:00:04]} Rxc1+ {[%emt 0:00:03]} 48. Bxc1 {[%emt 0:00:04]} Bxc1 {[%emt 0:00:09]} 49. Nf6+ {[%emt 0:00:09]} Kc6 {[%emt 0:00:45]} 50. Kxc1 {[%emt 0:00:03]} b5 {[%emt 0:00:08]} 51. axb5+ {[%emt 0:00:15]} Kxb5 {[%emt 0:00:04]} 52. Kd2 {[%emt 0:00:58]} 1/2-1/2